[Event "Fagernes Chess GM-Swiss 2025"]
[Site "Fagernes"]
[Date "2025.04.18"]
[Round "7.30"]
[White "Ashwath Kaushik"]
[Black "Berget, Eirik"]
[Result "1/2-1/2"]
[Annotator "NA"]
[ECO "D30"]
[WhiteElo "1958"]
[BlackElo "2041"]
[PlyCount "104"]
[EventDate "2025.04.12"]
[EventCountry "NOR"]
[SourceTitle "playchess.com"]
[Source "ChessBase"]
[SourceQuality "1"]
[TimeControl "40/6000+30:2400+30"]

1. d4 {[%emt 0:00:02]} Nf6 {[%emt 0:00:21]} 2. Nf3 {[%emt 0:00:19]} e6 {[%emt 0:00:42]} 3. c4 {[%emt 0:00:13]} d5 {[%emt 0:00:14]} 4. e3 {[%emt 0:00:05]} c5 {[%emt 0:00:12]} 5. cxd5 {[%emt 0:00:09]} exd5 {[%emt 0:00:07]} 6. Bb5+ {[%emt 0:00:06]} Bd7 {[%emt 0:01:46]} 7. Bxd7+ {[%emt 0:00:13]} Nbxd7 {[%emt 0:00:05]} 8. dxc5 {[%emt 0:00:15]} Nxc5 {[%emt 0:01:13]} 9. O-O {[%emt 0:00:46]} Bd6 {[%emt 0:00:51]} 10. b3 {[%emt 0:04:02]} O-O {[%emt 0:04:24]} 11. Nc3 {[%emt 0:04:16]} Nce4 {[%emt 0:10:02]} 12. Bb2 {[%emt 0:03:38]} Rc8 {[%emt 0:02:43]} 13. Ne2 {[%emt 0:01:15]} Qd7 {[%emt 0:02:45]} 14. Bxf6 {[%emt 0:03:03]} Nxf6 {[%emt 0:00:40]} 15. Qd3 {[%emt 0:02:59]} Rfd8 {[%emt 0:03:30]} 16. Rfd1 {[%emt 0:21:15]} Ne4 {[%emt 0:04:51]} 17. h3 {[%emt 0:17:38]} h6 {[%emt 0:04:45]} 18. Nfd4 {[%emt 0:03:11]} Qe7 {[%emt 0:05:15]} 19. f3 {[%emt 0:12:32]} Nc5 {[%emt 0:02:36]} 20. Qd2 {[%emt 0:00:42]} Bb8 {[%emt 0:02:53]} 21. Nc3 {[%emt 0:06:24]} Qc7 {[%emt 0:10:41]} 22. Nf5 {[%emt 0:04:15]} Qh2+ {[%emt 0:11:44]} 23. Kf2 {[%emt 0:07:41]} Qe5 {[%emt 0:13:43]} 24. Nxd5 {[%emt 0:03:32]} Rd7 {[%emt 0:02:32]} 25. e4 {[%emt 0:02:10]} Rcd8 {[%emt 0:00:29]} 26. Rac1 {[%emt 0:02:36]} b6 {[%emt 0:02:29]} 27. b4 {[%emt 0:00:42]} Rxd5 {[%emt 0:00:13]} 28. exd5 {[%emt 0:01:21]} Qxf5 {[%emt 0:02:54]} 29. bxc5 {[%emt 0:00:40]} Bf4 {[%emt 0:00:05]} 30. Qc2 {[%emt 0:01:27]} Qe5 {[%emt 0:00:23]} 31. Qc3 {[%emt 0:02:58]} Qg5 {[%emt 0:00:06]} 32. Rb1 {[%emt 0:01:44]} Re8 {[%emt 0:05:28]} 33. Rd3 {[%emt 0:04:19]} Qg3+ {[%emt 0:00:00]} 34. Kf1 {[%emt 0:00:13]} Qh2 {[%emt 0:00:00]} 35. Qd4 {[%emt 0:00:47]} bxc5 {[%emt 0:00:00]} 36. Qxc5 {[%emt 0:00:29]} Bc7 {[%emt 0:00:41]} 37. Qg1 {[%emt 0:00:28]} Qe5 {[%emt 0:00:23]} 38. Qf2 {[%emt 0:00:33]} Bb6 {[%emt 0:00:19]} 39. Qd2 {[%emt 0:00:31]} Ba5 {[%emt 0:01:56]} 40. Qf2 {[%emt 0:00:25]} Bb6 {[%emt 0:00:13]} 41. f4 {[%emt 0:10:33]} Qf5 {[%emt 0:02:16]} 42. Qf3 {[%emt 0:06:45]} Re3 {[%emt 0:07:29]} 43. Rxe3 {[%emt 0:01:25]} Qxb1+ {[%emt 0:00:06]} 44. Re1 {[%emt 0:00:24]} Qb5+ {[%emt 0:01:39]} 45. Qe2 {[%emt 0:00:19]} Qc5 {[%emt 0:00:46]} 46. Qe8+ {[%emt 0:02:19]} Kh7 {[%emt 0:00:05]} 47. Qe4+ {[%emt 0:00:58]} g6 {[%emt 0:00:35]} 48. Ke2 {[%emt 0:06:09]} Qf2+ {[%emt 0:01:49]} 49. Kd1 {[%emt 0:03:39]} Qxa2 {[%emt 0:00:42]} 50. f5 {[%emt 0:09:21]} Qa1+ {[%emt 0:01:17]} 51. Ke2 {[%emt 0:00:38]} Qb2+ {[%emt 0:00:30]} 52. Kd1 {[%emt 0:00:20]} Qa1+ {[%emt 0:00:11]} 1/2-1/2

[Event "Fagernes Chess GM-Swiss 2025"]
[Site "Fagernes"]
[Date "2025.04.18"]
[Round "7.31"]
[White "Haugen, Lars Tormod"]
[Black "Stromhaug, Kristoffer Wang"]
[Result "1-0"]
[Annotator "NA"]
[ECO "B70"]
[WhiteElo "1988"]
[BlackElo "2020"]
[PlyCount "97"]
[EventDate "2025.04.12"]
[EventCountry "NOR"]
[SourceTitle "playchess.com"]
[Source "ChessBase"]
[SourceQuality "1"]
[TimeControl "40/6000+30:2400+30"]

1. e4 {[%emt 0:06:12]} c5 {[%emt 0:00:06]} 2. Nc3 {[%emt 0:01:01]} g6 {[%emt 0:05:36]} 3. d4 {[%emt 0:01:17]} Bg7 {[%emt 0:06:03]} 4. Nf3 {[%emt 0:09:07]} cxd4 {[%emt 0:00:55]} 5. Nxd4 {[%emt 0:00:03]} Nc6 {[%emt 0:00:39]} 6. Nxc6 {[%emt 0:01:08]} bxc6 {[%emt 0:00:44]} 7. Bc4 {[%emt 0:01:01]} d6 {[%emt 0:10:36]} 8. O-O {[%emt 0:02:16]} Nf6 {[%emt 0:06:07]} 9. e5 {[%emt 0:01:45]} dxe5 {[%emt 0:05:46]} 10. Qxd8+ {[%emt 0:01:23]} Kxd8 {[%emt 0:00:13]} 11. Re1 {[%emt 0:00:09]} Rf8 {[%emt 0:19:17]} 12. Rxe5 {[%emt 0:03:27]} Nd5 {[%emt 0:03:31]} 13. Re2 {[%emt 0:09:04]} Be6 {[%emt 0:11:12]} 14. Nxd5 {[%emt 0:12:41]} Bxd5 {[%emt 0:01:37]} 15. Ba6 {[%emt 0:06:13]} e5 {[%emt 0:07:01]} 16. Bd2 {[%emt 0:13:17]} Rb8 {[%emt 0:05:45]} 17. c4 {[%emt 0:01:13]} Be6 {[%emt 0:00:43]} 18. Ba5+ {[%emt 0:07:32]} Ke7 {[%emt 0:02:41]} 19. Rd1 {[%emt 0:07:22]} f5 {[%emt 0:01:14]} 20. Bc7 {[%emt 0:05:15]} e4 {[%emt 0:00:44]} 21. b3 {[%emt 0:02:10]} Kf7 {[%emt 0:00:51]} 22. Bxb8 {[%emt 0:06:18]} Rxb8 {[%emt 0:00:01]} 23. c5 {[%emt 0:00:42]} Bf8 {[%emt 0:00:34]} 24. Rc2 {[%emt 0:01:08]} Bd5 {[%emt 0:00:34]} 25. Bc4 {[%emt 0:01:11]} Ke6 {[%emt 0:00:23]} 26. Kf1 {[%emt 0:03:38]} Rc8 {[%emt 0:02:56]} 27. b4 {[%emt 0:00:34]} a5 {[%emt 0:00:48]} 28. a3 {[%emt 0:00:16]} axb4 {[%emt 0:00:27]} 29. axb4 {[%emt 0:00:07]} Rb8 {[%emt 0:00:21]} 30. Bxd5+ {[%emt 0:01:41]} cxd5 {[%emt 0:00:01]} 31. Rb1 {[%emt 0:01:43]} d4 {[%emt 0:00:17]} 32. b5 {[%emt 0:00:46]} d3 {[%emt 0:00:04]} 33. Rc3 {[%emt 0:01:14]} Bg7 {[%emt 0:00:26]} 34. Rcb3 {[%emt 0:00:31]} Bd4 {[%emt 0:00:26]} 35. Rc1 {[%emt 0:01:27]} Kd7 {[%emt 0:02:32]} 36. Rb4 {[%emt 0:01:10]} Be5 {[%emt 0:01:37]} 37. g3 {[%emt 0:00:03]} h5 {[%emt 0:01:04]} 38. h4 {[%emt 0:00:06]} Kc7 {[%emt 0:02:13]} 39. Rcb1 {[%emt 0:01:10]} Ra8 {[%emt 0:03:59]} 40. b6+ {[%emt 0:01:53]} Kc6 {[%emt 0:01:45]} 41. b7 {[%emt 0:07:40]} Rb8 {[%emt 0:01:27]} 42. Rb6+ {[%emt 0:03:38]} Kxc5 {[%emt 0:01:05]} 43. Rxg6 {[%emt 0:00:22]} Kd4 {[%emt 0:01:11]} 44. Re6 {[%emt 0:12:50]} Bc7 {[%emt 0:08:12]} 45. Rc6 {[%emt 0:01:32]} Be5 {[%emt 0:00:36]} 46. Rb4+ {[%emt 0:03:22]} Kd5 {[%emt 0:00:08]} 47. Rc8 {[%emt 0:00:39]} f4 {[%emt 0:00:42]} 48. Rb5+ {[%emt 0:04:54]} Kd4 {[%emt 0:00:27]} 49. Rxe5 {[%emt 0:01:27]} 1-0

[Event "Fagernes Chess GM-Swiss 2025"]
[Site "Fagernes"]
[Date "2025.04.18"]
[Round "7.32"]
[White "Kaewpitakkun, Pantham"]
[Black "Wernberg, Nikolai Olsen"]
[Result "1-0"]
[Annotator "NA RC"]
[ECO "B47"]
[WhiteElo "2026"]
[BlackElo "1893"]
[PlyCount "67"]
[EventDate "2025.04.12"]
[EventCountry "NOR"]
[SourceTitle "playchess.com"]
[Source "ChessBase"]
[SourceQuality "1"]
[TimeControl "40/6000+30:2400+30"]

1. e4 {[%emt 0:00:20]} c5 {[%emt 0:00:12]} 2. Nf3 {[%emt 0:00:04]} e6 {[%emt 0:00:07]} 3. d4 {[%emt 0:00:06]} cxd4 {[%emt 0:00:07]} 4. Nxd4 {[%emt 0:00:04]} Nc6 {[%emt 0:00:08]} 5. Nc3 {[%emt 0:00:14]} Qc7 {[%emt 0:00:09]} 6. g3 {[%emt 0:01:39]} a6 {[%emt 0:00:34]} 7. Bg2 {[%emt 0:01:07]} Nf6 {[%emt 0:00:34]} 8. O-O {[%emt 0:02:50]} Nxd4 {[%emt 0:01:08]} 9. Qxd4 {[%emt 0:00:14]} Bc5 {[%emt 0:00:20]} 10. Bf4 {[%emt 0:05:57]} d6 {[%emt 0:00:53]} 11. Qd3 {[%emt 0:02:05]} h6 {[%emt 0:01:37]} 12. Rad1 {[%emt 0:00:30]} e5 {[%emt 0:00:30]} 13. Be3 {[%emt 0:00:30]} Bg4 {[%emt 0:00:30]} 14. Bxc5 {[%emt 0:00:30]} dxc5 {[%emt 0:00:30]} 15. Bf3 {[%emt 0:14:22]} Bxf3 {[%emt 0:13:41]} 16. Qxf3 {[%emt 0:00:11]} O-O {[%emt 0:00:59]} 17. Nd5 {[%emt 0:10:47]} Nxd5 {[%emt 0:00:58]} 18. Rxd5 {[%emt 0:00:22]} Rad8 {[%emt 0:02:37]} 19. Rfd1 {[%emt 0:01:59]} Rxd5 {[%emt 0:01:32]} 20. Rxd5 {[%emt 0:01:58]} Rd8 {[%emt 0:02:12]} 21. c4 {[%emt 0:00:57]} Rxd5 {[%emt 0:01:51]} 22. exd5 {[%emt 0:00:33]} Qe7 {[%emt 0:12:01]} 23. Qe4 {[%emt 0:05:53]} Qf6 {[%emt 0:03:05]} 24. a4 {[%emt 0:03:22]} a5 {[%emt 0:03:34]} 25. Qg4 {[%emt 0:03:44]} Kh7 {[%emt 0:02:10]} 26. Qe2 {[%emt 0:02:45]} g6 {[%emt 0:05:18]} 27. Qd2 {[%emt 0:02:59]} Qd6 {[%emt 0:01:57]} 28. Qxa5 {[%emt 0:00:37]} e4 {[%emt 0:02:57]} 29. Qc3 {[%emt 0:02:33]} Qd7 {[%emt 0:09:20]} 30. Qf6 {[%emt 0:08:23]} Kg8 {[%emt 0:03:00]} 31. Qf4 {[%emt 0:02:43]} Qxa4 {[%emt 0:02:45]} 32. Qxe4 {[%emt 0:01:32]} Qd1+ {[%emt 0:02:49]} 33. Kg2 {[%emt 0:00:11]} g5 {[%emt 0:03:21]} 34. h3 {[%emt 0:00:56]} 1-0

[Event "Fagernes Chess GM-Swiss 2025"]
[Site "Fagernes"]
[Date "2025.04.18"]
[Round "7.33"]
[White "Halvorsen, Benjamin"]
[Black "Strand, Amund Pihl"]
[Result "1-0"]
[Annotator "NA"]
[ECO "B40"]
[WhiteElo "1966"]
[BlackElo "1914"]
[PlyCount "69"]
[EventDate "2025.04.12"]
[EventCountry "NOR"]
[SourceTitle "playchess.com"]
[Source "ChessBase"]
[SourceQuality "1"]
[TimeControl "40/6000+30:2400+30"]

1. e4 {[%emt 0:02:28]} c5 {[%emt 0:03:05]} 2. Nf3 {[%emt 0:00:06]} e6 {[%emt 0:00:04]} 3. g3 {[%emt 0:00:06]} Nc6 {[%emt 0:00:11]} 4. Bg2 {[%emt 0:00:07]} e5 {[%emt 0:00:52]} 5. O-O {[%emt 0:00:13]} Be7 {[%emt 0:00:14]} 6. c3 {[%emt 0:00:15]} Nf6 {[%emt 0:01:44]} 7. Re1 {[%emt 0:05:32]} d6 {[%emt 0:05:51]} 8. d4 {[%emt 0:08:16]} Bg4 {[%emt 0:03:31]} 9. Qd3 {[%emt 0:01:24]} Bxf3 {[%emt 0:04:59]} 10. Bxf3 {[%emt 0:03:46]} cxd4 {[%emt 0:03:13]} 11. b4 {[%emt 0:03:52]} dxc3 {[%emt 0:04:47]} 12. Nxc3 {[%emt 0:06:22]} O-O {[%emt 0:06:54]} 13. a3 {[%emt 0:01:55]} Nd4 {[%emt 0:11:42]} 14. Bd1 {[%emt 0:01:01]} a6 {[%emt 0:25:55]} 15. Be3 {[%emt 0:02:29]} Ne6 {[%emt 0:00:38]} 16. f4 {[%emt 0:06:21]} h6 {[%emt 0:12:36]} 17. f5 {[%emt 0:09:00]} Ng5 {[%emt 0:00:37]} 18. h4 {[%emt 0:05:15]} Ngh7 {[%emt 0:00:16]} 19. Kg2 {[%emt 0:01:02]} Rc8 {[%emt 0:02:50]} 20. Rc1 {[%emt 0:01:52]} Qd7 {[%emt 0:04:16]} 21. g4 {[%emt 0:03:52]} Rxc3 {[%emt 0:14:57]} 22. Rxc3 {[%emt 0:17:37]} d5 {[%emt 0:00:08]} 23. Bc5 {[%emt 0:00:39]} d4 {[%emt 0:01:15]} 24. Bxe7 {[%emt 0:00:59]} Qxe7 {[%emt 0:00:06]} 25. Rc2 {[%emt 0:06:40]} Rd8 {[%emt 0:00:34]} 26. Bf3 {[%emt 0:00:50]} Ne8 {[%emt 0:00:24]} 27. Kg3 {[%emt 0:00:57]} Nd6 {[%emt 0:00:10]} 28. Rec1 {[%emt 0:00:42]} Nb5 {[%emt 0:00:13]} 29. Rc8 {[%emt 0:00:47]} Re8 {[%emt 0:01:36]} 30. R1c5 {[%emt 0:01:38]} f6 {[%emt 0:01:19]} 31. Bd1 {[%emt 0:00:50]} Nf8 {[%emt 0:00:32]} 32. Bb3+ {[%emt 0:02:29]} Kh8 {[%emt 0:00:14]} 33. Qc4 {[%emt 0:00:49]} Nd7 {[%emt 0:00:06]} 34. Rxe8+ {[%emt 0:00:12]} Qxe8 {[%emt 0:00:03]} 35. Rc8 {[%emt 0:00:10]} 1-0

[Event "Fagernes Chess GM-Swiss 2025"]
[Site "Fagernes"]
[Date "2025.04.19"]
[Round "8.1"]
[White "Ghosh, Diptayan"]
[Black "Urkedal, Frode Olav Olsen"]
[Result "1/2-1/2"]
[Annotator "TA"]
[ECO "E29"]
[WhiteElo "2573"]
[BlackElo "2550"]
[PlyCount "37"]
[EventDate "2025.04.12"]
[EventCountry "NOR"]
[SourceTitle "playchess.com"]
[Source "ChessBase"]
[SourceQuality "1"]
[TimeControl "40/6000+30:2400+30"]

{[%evp 13,37,-2,0,-35,-37,-38,0,-9,36,5,44,25,43,22,20,14,16,14,21,13,17,0,0,0,22,-6]} 1. d4 {[%emt 0:02:42]} Nf6 {[%emt 0:00:28]} 2. c4 {[%emt 0:00:05]} e6 {[%emt 0:00:00]} 3. Nc3 {[%emt 0:00:17]} Bb4 {[%emt 0:00:20]} 4. e3 {[%emt 0:02:40]} O-O {[%emt 0:01:04]} 5. Bd3 {[%emt 0:00:05]} c5 {[%emt 0:01:07]} 6. a3 {[%emt 0:00:43]} Bxc3+ {[%emt 0:01:29]} 7. bxc3 {[%emt 0:00:21]} Nc6 {[%emt 0:03:36]} 8. Rb1 {[%emt 0:00:25] E29: Nimzo-Indian: Sämisch: 5...0-0 6 e3 c5 7 Bd3 Nc6.} d6 {[%emt 0:04:27]} 9. Ne2 {[%emt 0:01:41]} e5 {[%emt 0:03:22]} 10. O-O {[%emt 0:00:56]} h6 $146 {[%emt 0:02:10]} (10... Re8 11. f3 b6 12. e4 cxd4 13. cxd4 Nxd4 14. Nxd4 exd4 15. Bg5 Re5 16. Bh4 Qe7 {1-0 Caruana,F (2805)-Deac,B (2680) Bucharest Superbet Classic 4th 2024 (4)}) 11. d5 {[%emt 0:09:47]} Ne7 {[%emt 0:04:52]} (11... e4 {with more complications.} 12. dxc6 exd3 13. cxb7 Bxb7 14. Rxb7 Qc8) 12. e4 {[%emt 0:01:39]} Ng6 {[%emt 0:02:59]} 13. f3 {[%emt 0:03:14]} Nh5 {[%emt 0:03:05] The position is equal.} 14. g3 {[%emt 0:03:29]} Nf6 {[%emt 0:02:15]} 15. Be3 {[%emt 0:01:25]} b6 {[%emt 0:02:05]} 16. Qc2 {[%emt 0:05:22]} Bh3 {[%emt 0:09:46]} 17. Rf2 {[%emt 0:01:44]} Nh7 {[%emt 0:03:11]} 18. Kh1 {[%emt 0:09:37]} Bd7 {[%emt 0:03:36]} 19. Rbf1 {[%emt 0:14:21] Weighted Error Value: White=0.12 (very precise) /Black=0.13 (very precise)   Inaccurate:     	White=2     	Black=3      OK:         	White=3     	Black=6} 1/2-1/2

[Event "Fagernes Chess GM-Swiss 2025"]
[Site "Fagernes"]
[Date "2025.04.19"]
[Round "8.2"]
[White "Jumabayev, Rinat"]
[Black "Csonka, Balazs"]
[Result "1/2-1/2"]
[Annotator "RC"]
[ECO "E04"]
[WhiteElo "2549"]
[BlackElo "2459"]
[PlyCount "221"]
[EventDate "2025.04.12"]
[EventCountry "NOR"]
[SourceTitle "playchess.com"]
[Source "ChessBase"]
[SourceQuality "1"]
[TimeControl "40/6000+30:2400+30"]

1. Nf3 {[%emt 0:00:44]} d5 {[%emt 0:00:14]} 2. g3 {[%emt 0:00:37]} Nf6 {[%emt 0:00:09]} 3. Bg2 {[%emt 0:00:09]} c5 {[%emt 0:00:09]} 4. O-O {[%emt 0:00:12]} Nc6 {[%emt 0:00:07]} 5. d4 {[%emt 0:00:05]} e6 {[%emt 0:00:11]} 6. c4 {[%emt 0:00:12]} dxc4 {[%emt 0:00:07]} 7. Qa4 {[%emt 0:00:18]} Bd7 {[%emt 0:00:16]} 8. Qxc4 {[%emt 0:00:12]} cxd4 {[%emt 0:00:16]} 9. Nxd4 {[%emt 0:00:17]} Rc8 {[%emt 0:00:08]} 10. Nc3 {[%emt 0:00:21]} Nxd4 {[%emt 0:00:14]} 11. Qxd4 {[%emt 0:00:02]} Bc5 {[%emt 0:00:13]} 12. Qh4 {[%emt 0:13:29]} Bc6 {[%emt 0:03:21]} 13. Bxc6+ {[%emt 0:23:21]} Rxc6 {[%emt 0:01:07]} 14. Rd1 {[%emt 0:03:47]} Qa5 {[%emt 0:03:28]} 15. Bg5 {[%emt 0:21:31]} Be7 {[%emt 0:00:45]} 16. Ne4 {[%emt 0:01:13]} Qe5 {[%emt 0:05:56]} 17. Nxf6+ {[%emt 0:05:25]} Bxf6 {[%emt 0:00:09]} 18. Bxf6 {[%emt 0:00:09]} Qxf6 {[%emt 0:00:07]} 19. Qb4 {[%emt 0:00:57]} Qe7 {[%emt 0:03:26]} 20. Qa4 {[%emt 0:06:32]} O-O {[%emt 0:01:29]} 21. Rac1 {[%emt 0:02:13]} Rxc1 {[%emt 0:16:43]} 22. Rxc1 {[%emt 0:00:16]} b6 {[%emt 0:00:14]} 23. Rd1 {[%emt 0:02:35]} h6 {[%emt 0:20:24]} 24. Rd7 {[%emt 0:01:57]} Qc5 {[%emt 0:00:50]} 25. Rxa7 {[%emt 0:07:57]} Qc1+ {[%emt 0:03:49]} 26. Kg2 {[%emt 0:00:01]} Qxb2 {[%emt 0:00:12]} 27. e3 {[%emt 0:00:02]} b5 {[%emt 0:36:13]} 28. Qe4 {[%emt 0:03:14]} Qd2 {[%emt 0:02:36]} 29. Qb7 {[%emt 0:02:13]} Qd5+ {[%emt 0:02:25]} 30. Qxd5 {[%emt 0:00:17]} exd5 {[%emt 0:00:02]} 31. Rd7 {[%emt 0:01:12]} Ra8 {[%emt 0:00:12]} 32. Rxd5 {[%emt 0:00:04]} Rxa2 {[%emt 0:00:05]} 33. Rxb5 {[%emt 0:00:13]} g6 {[%emt 0:04:46]} 34. g4 {[%emt 0:00:26]} Kg7 {[%emt 0:01:30]} 35. h4 {[%emt 0:03:47]} Kf6 {[%emt 0:00:57]} 36. Kg3 {[%emt 0:07:44]} g5 {[%emt 0:01:02]} 37. f3 {[%emt 0:02:24]} Ra3 {[%emt 0:02:01]} 38. e4 {[%emt 0:00:56]} Kg6 {[%emt 0:01:20]} 39. h5+ {[%emt 0:01:35]} Kg7 {[%emt 0:00:27]} 40. Rb2 {[%emt 0:00:13]} Rc3 {[%emt 0:02:07]} 41. Kf2 {[%emt 0:40:12]} Ra3 {[%emt 0:02:03]} 42. Ke2 {[%emt 0:00:00]} Rc3 {[%emt 0:07:46]} 43. Rd2 {[%emt 0:00:00]} Ra3 {[%emt 0:00:24]} 44. Rd3 {[%emt 0:00:00]} Ra2+ {[%emt 0:01:38]} 45. Ke3 {[%emt 0:00:00]} Ra1 {[%emt 0:04:09]} 46. Rc3 {[%emt 0:00:00]} Rd1 {[%emt 0:01:17]} 47. Rb3 {[%emt 0:00:00]} Kg8 {[%emt 0:01:10]} 48. Rd3 {[%emt 0:00:00]} Ra1 {[%emt 0:00:10]} 49. Kd4 {[%emt 0:00:00]} Kg7 {[%emt 0:01:01]} 50. Ke5 {[%emt 0:00:00]} Ra6 {[%emt 0:01:19]} 51. Rd6 {[%emt 0:00:00]} Ra3 {[%emt 0:01:45]} 52. f4 {[%emt 0:00:00]} gxf4 {[%emt 0:00:07]} 53. Kxf4 {[%emt 0:00:00]} Ra1 {[%emt 0:00:58]} 54. Rd3 {[%emt 0:00:00]} Re1 {[%emt 0:05:29]} 55. e5 {[%emt 0:00:00]} Rf1+ {[%emt 0:03:40]} 56. Rf3 {[%emt 0:00:00]} Rg1 {[%emt 0:00:14]} 57. Rf2 {[%emt 0:00:00]} Kg8 {[%emt 0:01:26]} 58. Re2 {[%emt 0:00:00]} Kg7 {[%emt 0:00:43]} 59. Re4 {[%emt 0:00:00]} Rf1+ {[%emt 0:03:45]} 60. Kg3 {[%emt 0:00:00]} Rg1+ {[%emt 0:00:12]} 61. Kf2 {[%emt 0:00:00]} Ra1 {[%emt 0:00:07]} 62. Rf4 {[%emt 0:00:00]} Ra5 {[%emt 0:02:48]} 63. Rf5 {[%emt 0:00:00]} Ra2+ {[%emt 0:00:05]} 64. Kg3 {[%emt 0:00:00]} Ra3+ {[%emt 0:00:10]} 65. Rf3 {[%emt 0:00:00]} Ra4 {[%emt 0:01:01]} 66. Rf1 {[%emt 0:00:00]} Rb4 {[%emt 0:00:59]} 67. Kf3 {[%emt 0:00:00]} Rb3+ {[%emt 0:04:08]} 68. Kf4 {[%emt 0:00:00]} Rh3 {[%emt 0:00:17]} 69. Rg1 {[%emt 0:01:00]} Rh2 {[%emt 0:00:21]} 70. Kf3 {[%emt 0:01:59]} Rh3+ {[%emt 0:01:06]} 71. Ke4 {[%emt 0:00:42]} Rh2 {[%emt 0:00:58]} 72. Ke3 {[%emt 0:01:23]} Ra2 {[%emt 0:01:06]} 73. Kf3 {[%emt 0:04:08]} Ra5 {[%emt 0:01:24]} 74. Re1 {[%emt 0:00:30]} Ra4 {[%emt 0:00:23]} 75. Rd1 {[%emt 0:02:14]} Rb4 {[%emt 0:00:31]} 76. Rd7 {[%emt 0:00:22]} Kg8 {[%emt 0:00:29]} 77. Rd6 {[%emt 0:00:21]} Kg7 {[%emt 0:00:10]} 78. Rf6 {[%emt 0:01:11]} Ra4 {[%emt 0:00:58]} 79. Rf5 {[%emt 0:01:13]} Ra3+ {[%emt 0:00:21]} 80. Kf4 {[%emt 0:00:16]} Ra4+ {[%emt 0:00:19]} 81. Kg3 {[%emt 0:00:01]} Ra3+ {[%emt 0:00:14]} 82. Rf3 {[%emt 0:00:01]} Ra4 {[%emt 0:00:30]} 83. Rf4 {[%emt 0:01:46]} Ra3+ {[%emt 0:00:38]} 84. Kh4 {[%emt 0:00:04]} Ra1 {[%emt 0:00:34]} 85. Re4 {[%emt 0:00:45]} Rh1+ {[%emt 0:00:28]} 86. Kg3 {[%emt 0:00:04]} Rg1+ {[%emt 0:00:17]} 87. Kf2 {[%emt 0:00:53]} Ra1 {[%emt 0:00:10]} 88. Re3 {[%emt 0:02:19]} Ra6 {[%emt 0:00:42]} 89. Kg3 {[%emt 0:00:47]} Re6 {[%emt 0:01:22]} 90. Kf4 {[%emt 0:00:45]} f6 {[%emt 0:00:37]} 91. exf6+ {[%emt 0:03:22]} Rxf6+ {[%emt 0:00:10]} 92. Ke5 {[%emt 0:00:03]} Ra6 {[%emt 0:00:37]} 93. Kf5 {[%emt 0:00:24]} Ra5+ {[%emt 0:00:30]} 94. Re5 {[%emt 0:00:11]} Ra7 {[%emt 0:00:05]} 95. Rd5 {[%emt 0:00:26]} Rb7 {[%emt 0:00:53]} 96. Ke6 {[%emt 0:00:19]} Rb6+ {[%emt 0:00:37]} 97. Ke5 {[%emt 0:01:23]} Rb7 {[%emt 0:00:07]} 98. Rd6 {[%emt 0:00:13]} Rb5+ {[%emt 0:01:28]} 99. Ke6 {[%emt 0:00:20]} Rb7 {[%emt 0:00:22]} 100. Kf5 {[%emt 0:01:16]} Rb5+ {[%emt 0:00:14]} 101. Ke6 {[%emt 0:00:27]} Rb7 {[%emt 0:00:19]} 102. Rd4 {[%emt 0:00:27]} Ra7 {[%emt 0:00:28]} 103. Ke5 {[%emt 0:00:21]} Ra5+ {[%emt 0:00:12]} 104. Kf4 {[%emt 0:00:04]} Ra7 {[%emt 0:00:08]} 105. Re4 {[%emt 0:00:23]} Rf7+ {[%emt 0:00:16]} 106. Kg3 {[%emt 0:00:01]} Ra7 {[%emt 0:00:09]} 107. Re6 {[%emt 0:00:08]} Ra3+ {[%emt 0:00:13]} 108. Kf4 {[%emt 0:00:17]} Ra4+ {[%emt 0:00:14]} 109. Kf5 {[%emt 0:00:08]} Ra5+ {[%emt 0:00:24]} 110. Re5 {[%emt 0:00:05]} Ra7 {[%emt 0:00:12]} 111. g5 {[%emt 0:00:49]} 1/2-1/2

[Event "Fagernes Chess GM-Swiss 2025"]
[Site "Fagernes"]
[Date "2025.04.19"]
[Round "8.3"]
[White "Raja Rithvik R"]
[Black "Kreken, Eivind Grunt"]
[Result "1/2-1/2"]
[Annotator "RC"]
[ECO "D32"]
[WhiteElo "2538"]
[BlackElo "2326"]
[PlyCount "65"]
[EventDate "2025.04.12"]
[EventCountry "NOR"]
[SourceTitle "playchess.com"]
[Source "ChessBase"]
[SourceQuality "1"]
[TimeControl "40/6000+30:2400+30"]

1. d4 {[%emt 0:04:21]} d5 {[%emt 0:00:07]} 2. c4 {[%emt 0:00:09]} e6 {[%emt 0:00:13]} 3. Nc3 {[%emt 0:00:24]} c5 {[%emt 0:00:06]} 4. cxd5 {[%emt 0:00:18]} exd5 {[%emt 0:00:07]} 5. Nf3 {[%emt 0:00:05]} Nf6 {[%emt 0:00:10]} 6. Bg5 {[%emt 0:00:14]} Be6 {[%emt 0:00:22]} 7. g3 {[%emt 0:00:26]} Nc6 {[%emt 0:01:02]} 8. Bg2 {[%emt 0:00:06]} h6 {[%emt 0:00:11]} 9. Bxf6 {[%emt 0:00:07]} Qxf6 {[%emt 0:00:05]} 10. O-O {[%emt 0:00:07]} O-O-O {[%emt 0:05:01]} 11. Qa4 {[%emt 0:01:11]} Kb8 {[%emt 0:21:01]} 12. Rad1 {[%emt 0:00:07]} cxd4 {[%emt 0:12:21]} 13. Nxd4 {[%emt 0:00:55]} Nxd4 {[%emt 0:04:05]} 14. Rxd4 {[%emt 0:01:14]} Bc5 {[%emt 0:02:21]} 15. Rd3 {[%emt 0:06:52]} d4 {[%emt 0:04:47]} 16. Ne4 {[%emt 0:05:32]} Qe7 {[%emt 0:01:32]} 17. Nxc5 {[%emt 0:00:15]} Qxc5 {[%emt 0:00:07]} 18. Rfd1 {[%emt 0:00:05]} Rd6 {[%emt 0:08:12]} 19. e3 {[%emt 0:21:20]} Ra6 {[%emt 0:08:27]} 20. Qxd4 {[%emt 0:01:00]} Qxd4 {[%emt 0:00:09]} 21. Rxd4 {[%emt 0:02:04]} Rxa2 {[%emt 0:01:59]} 22. Rb4 {[%emt 0:00:45]} b6 {[%emt 0:00:47]} 23. f4 {[%emt 0:00:15]} Rc8 {[%emt 0:02:35]} 24. Rd2 {[%emt 0:00:17]} Ra1+ {[%emt 0:10:52]} 25. Kf2 {[%emt 0:00:22]} Rac1 {[%emt 0:00:27]} 26. e4 {[%emt 0:03:20]} R1c2 {[%emt 0:01:20]} 27. Rbd4 {[%emt 0:03:38]} f6 {[%emt 0:00:54]} 28. Ke3 {[%emt 0:01:46]} Rxd2 {[%emt 0:01:51]} 29. Rxd2 {[%emt 0:00:49]} Kc7 {[%emt 0:01:07]} 30. Bf1 {[%emt 0:07:59]} Rd8 {[%emt 0:05:28]} 31. Rc2+ {[%emt 0:01:13]} Kd6 {[%emt 0:00:49]} 32. Bb5 {[%emt 0:00:42]} Rc8 {[%emt 0:01:11]} 33. Rd2+ {[%emt 0:00:11]} 1/2-1/2